{"text_format":"3","workbook":"xlsx","n_sheets":1,"sheets":["电器产品"],"not_rendered":{"external_links":1,"defined_names":2},"read":"whole","date_system":"1900"}

{"sheet":"电器产品","index":0,"n_rows":26,"n_cols":8,"rows_kept":26,"merged":[[0,0,0,7],[4,0,4,5],[25,0,25,5],[25,6,25,7]]}
["电器产品设施设备"]
["序号","项目名称","规格","单位","数量","单价","合计","技术参数"]
["1","手提电脑","笔记本","台",2,{"v":5000,"d":"5000.00"},{"$f":"E3*F3","v":10000},"屏幕：14英寸    分辨率：1920x1080     续航时间：8小时左右，视具体使用环境    CPU主频：2.5GHz       内存容量：16GB（8GB×2） "]
["2","电  脑","台式办公电脑","台",10,{"v":3980,"d":"3980.00"},39800,"    屏幕尺寸：20-21.5英寸    支持IPv6：支持IPv6   系统：Windows 11   机箱大小：10-20L   处理器：intel i5  内存容量：16GB                        硬盘容量：240GB/256GB SSD+1TB     显卡型号：集成显卡   类型：主机+显示器    能效等级：一级能效"]
["电脑小计：",{"$nulls":5},{"$f":"SUM(G3:G4)","v":49800}]
["3","彩色打印机"," M283fdw系列/479fdw","台",1,{"v":2680,"d":"2680.00"},{"$f":"E6*F6","v":2680},"涵盖功能: 打印 扫描 传真 复印  打印机类型: 彩色激光接口类型: USB 以太网  颜色分类: M155A 单打印 17页每分钟 M183fw 传真四合一无线 M282nw 有线/无线网络 M283fdw 四合一双面 M283dw 有线/无线网络+ 双面 M283fdn 有线网络+ 双面 M480f高强版双面复印+无线输稿器 M479DW 双面打印无线 M479 FDW    四合一最大幅面: A4     是否支持网络打印: 是   是否支持自动双面打印: 是  能效等级: 无打印速度: 21页每分钟  版本类型: 港澳台适用场景: 商务办公一体机类型: 彩色激光多功能一体    机耗材类型: 鼓粉一体远程    打印方式: 移动app    打印月负荷量: 40000页"]
["4","打印机","得力(deli)办公大容量黑白激光打印机，自动双面 P3100DN自动双面打印","台",1,{"v":2180,"d":"2180.00"},{"$f":"E7*F7","v":2180},"打印功能：自动双面  类型：黑白  商品毛重：7.7kg    最大支持幅面：A4   纸张输入容量：150-249页  扫描功能：无  基础功能：打印                    输稿器：不支持输稿器   连接方式：Wi-Fi，USB  ，有线 打印速度：25-34页/分"]
["5","A3复印机","佳能A3彩色激光复印机C3226+原装工作台AZ1，7寸彩色液晶触摸屏","台",1,{"v":16000,"d":"16000.00"},16000,"7寸彩色液晶触摸屏，2G内存，速度：26页/分钟(黑彩同速)\n首页输出时间：黑白7.0秒，彩色8.7秒\n*纸张范围：最厚支持到300克纸，最长可1200mm长纸打印\n*标配：无线WIFI/有线LAN，手机U盘直连打印扫描\n*标配：550*2双纸盒及纸盒加热器（自动轻力纸盒吸门设计）\n*标配：自动双面输稿器 扫描速度70页每分钟（空气能检测专利技术可防止一次进两张纸）扫描纸张范围：38g~128g(增值税发票~铜版纸）"]
["6","票据针式","富士通","台",1,{"v":1780,"d":"1780.00"},1780,"平推票据打印机/DPK-8050，82列平推、中文超高速300/秒，1+6份  ；打印厚度1.2mm,USB2.0+，无故障20000小时，打印头寿命5亿次，色带1200万字符"]
["7","装订机","金典装订机","台",1,{"v":1750,"d":"1750.00"},1750,"\n打印厚度50mm，自动打孔和压铆、激光定位，触摸按键 "]
["8","摄像机","索尼AX700索尼(SONY) FDR-AX700 4K高清数码摄像机","台",1,{"v":12900,"d":"12900.00"},12900,"会议/直播DV录像机超慢动作(含128G 4K摄录卡+卡色UV+单肩包）"]
["9","单色电子屏","单色红色强力巨彩","平方",10,{"v":1080,"d":"1080.00"},10800,"根据现场尺寸定制，据实结算"]
["10","一体机","75英寸幼教平板","台",10,{"v":12860,"d":"12860.00"},128600,"1.产品外观采用金属材质，边角采用弧形设计，表面无尖锐边缘或凸起，保证设备的使用安全性。\n2.屏幕显示尺寸≥75寸，原装进口LED 液晶A规屏。\n3.显示比例16:9，亮度≥300cd/m2，对比度≥1200：1，可视角度≥178°\n4.★为保证美观与使用区域的合理化，中间显示区域的印刷黑边小于40mm，屏占比≥94%。。\n5.整机书写屏表面硬度≥7H。\n6.整机图像物理高清分辨率 3840 * 2160 ，满足数字全高清 1080P要求。。\n7.节能：一体机在待机状态下功率≤0.5W，当设备在五分钟内处于无信号接收状态且无人操作时，将会自动关机，节省能耗。\n8.单独听：在黑屏节能状态下，可进行声音播放，实现单独听功能。\n9.下置2*10W双频喇叭：音箱式下出声喇叭，原音无阻挡，音质效果好，保证教室内声音有效覆盖。\n10.整机前置接口至少2路前置USB接口方便U盘等USB设备接入。\n11.整机接口端子应满足：输入端口：HDMI≥1，音频≥1，USB≥1；输出端口：USB-TOUCH≥1，Earphone≥1\n12.产品可在任意通道下通过手势在屏幕上调取触摸中控菜单，触控菜单整合信号源通道切换、亮度对比度调节、声音图像调节等功能，无须实体按键。\n13.★为适应不同人员对产品软件实际操作的需求，不采用任何物理升降结构,通过软件快捷键即可实现液晶屏幕上显示窗口下移，实现半屏显示、原始状态、还原状态，实现三种不同显示模式，并可进行触控批注，方便老师操作。\n"]
["11",{"$nulls":6},"14.★低蓝光保护，可有效过滤LED光源发出的可见光中含有的大量有害蓝光，保护视力健康。\n15.★整机通过震动试验、火焰燃烧试验、盐雾试验、高低温试验等要求，保证整机使用安全。\n16.整机在常规使用下,噪音等级≤18.5dB(A)\n17.整机MTBF≥120000小时。"]
["12","洗衣机"," 550*565*920 ","台",2,{"v":1200,"d":"1200.00"},{"$f":"E15*F15","v":2400},"1.产品尺寸\n2.电机类型 原厂品质电机\n3.洗涤容量 8.0(KG)\n4.能效等级 三级\n5.洗净比 0.8\n安装条件：有进水水源、出水通道，客户预先准备完毕\n    "]
["13","家用热水器",null,"台",10,1200,{"$f":"E16*F16","v":12000},"  特征特质：速热增容，银离子抑菌    能效等级：一级能效容量：60-79L     类型：储水式电热水器   操控方式：APP"]
["14","落地式电风扇",null,"台",4,210,840]
["15","教室直饮水机","水胆18升，2KW/220V\n尺寸: 560X400X870mm","台",10,2650,26500,"智能全自动控温,开水不烧开则不出水,温开水都是开水经过热交换器同时加热,同时降温,出水快,每一滴都是放心饮用水。进口UV紫外线抑菌装置,高效抑制水中细菌的产生,保护水质安全。智能精准监测和显示净化前后的水质,净化效果一目了然。热水回流高温杀菌,巧妙利用热水箱中的高温热水,对温水的出水路进行高温消毒杀菌,确保出水前最后一道环节中的水质安全。"]
["16","壁挂式饮水机",null,"台",1,2010,2010,"wifi智控\n水温随心调\n六段智能控温纤薄机身\n钢化玻璃面板+触控设计"]
["17","落地式饮水机",null,"台",1,400,400,"全自动智能正品饮水机"]
["18","小蜜蜂","无线便携大功率数字扩音器小蜜蜂","套",10,419,4190,"无线蓝牙录音"]
["19","音箱","8寸标配U段","个",1,1060,1060,"无线话筒2个"]
["20","教室移动消毒灯",null,"个",9,180,1620]
["1","电钢琴","155*58*39 cm","架",1,{"v":6500,"d":"6500.00"},{"$f":"F24*E24","v":{"v":6500,"d":"6500.00"}},"颜色:亮光烤漆(黑色/白色)\n     木纹（黑色/白色）共4种颜色\n 功能介绍：\n88键全配重键盘\n128复音数\n法国dream梦幻音源\n音量控制，单音色\n5级力度触感，手感为钢琴手感。\n三个踏板：延音/弱音/后延音踏板\n双耳机立体声音频输出插口\nUSB接口可连接手机APP"]
["2","电钢琴","135W * 33D *77.5 cm","架",8,{"v":3190,"d":"3190.00"},{"$f":"F25*E25","v":{"v":25520,"d":"25520.00"}},"颜色:木纹（黑色/白色)\n     木纹（黑色/白色）共2种颜色\n功能介绍：\n88键力度键盘\n64复音数\n30种示范曲，12种音色，8种节奏\n键盘打击乐器\n音效控制/插入/和弦/混响/合唱/启动/停止\n电源开关/主音量控制\n同步启动/同步结束/前奏/尾奏\n音色选择/节奏选择\n三踏板：延音/弱音/持续音踏板 \n控制/录音/录音回放\nMIDI功能/音频输出/音频输入\n双耳机音频输出\nMP3播放/暂停/音量控制+/-\n产品规格：135W * 33D *77.5H cm"]
["以上合计",{"$nulls":5},{"$f":"G5+G6+G7+G8+G9+G10+G11+G12+G13+G15+G16+G17+G18+G19+G20+G21+G22+G23+G24+G25","v":{"v":309530,"d":"309,530.00"}}]